Cogmind - Beta 13 @@@ ROGUE MODE // 2024.05.01 @ 21:43:49 Player: Jules Result: Self-destructed Performance ------------- Evolutions (1) 500 Regions Visited (2) 400 Robots Destroyed (27) 135 Value Destroyed (663) 663 Prototype IDs (0) 0 Alien Tech Used (0) 0 Bonus (40) 40 TOTAL SCORE: 1738 Bonus ------- High Alert Combat Kills 40 Cogmind --------- Core Integrity 249/400 Matter 268/300 Energy 265/265 System Corruption 0% Temperature Cool (6) Movement Core (350) Ox6 Location -9/Materials Parts ------- > --- POWER (1) -------- Improved Ion Engine > --- PROPULSION (3) --- (None) > --- UTILITY (3) ------ Small Storage Unit Visual Processing Unit Terrain Scanner > --- WEAPON (2) ------- Minigun Assault Cannon > --- INVENTORY (8) ---- Light Deuterium Engine Aluminum Leg Light Armor Plating Beam Rifle Beam Rifle Minigun Rocket Launcher Plasma Cutter Peak State ------------ > --- POWER ------------ Improved Ion Engine > --- PROPULSION ------- Light Treads Light Treads Light Treads > --- UTILITY ---------- Small Storage Unit Visual Processing Unit Terrain Scan Processor > --- WEAPON ----------- Beam Rifle Assault Cannon > --- INVENTORY -------- Light Nuclear Core Aluminum Leg Light Armor Plating Small Laser Beam Rifle Light Assault Rifle Heavy Assault Rifle Heavy Hammer [Rating: 16] Favorites ----------- Power Improved Ion Engine Engine Improved Ion Engine Propulsion Light Treads Treads Light Treads Leg Aluminum Leg Utility Small Storage Unit Device Terrain Scanner Storage Small Storage Unit Processor Visual Processing Unit Weapon Assault Cannon Energy Gun Small Laser Ballistic Gun Light Assault Rifle Ballistic Cannon Assault Cannon Impact Weapon Heavy Hammer Build | -11 -10 -9 ------- Run | Yrd Mat Mat Slots Evolved 2 | . . 2 Power . | . . . Propulsion 1 | . . 1 Utility 1 | . . 1 Weapon . | . . . Parts Attached 20 | 6 3 11 Power 2 | 1 . 1 Engine 2 | 1 . 1 Core . | . . . Reactor . | . . . Propulsion 6 | 2 . 4 Treads 4 | . . 4 Leg 2 | 2 . . Wheel . | . . . Hover . | . . . Flight . | . . . Utility 4 | 1 1 2 Device 1 | . . 1 Storage 1 | 1 . . Processor 2 | . 1 1 Hackware . | . . . Protection . | . . . Artifact . | . . . Weapon 8 | 2 2 4 Energy Gun 3 | 1 1 1 Energy Cannon . | . . . Ballistic Gun 3 | 1 . 2 Ballistic Cannon 1 | . . 1 Launcher . | . . . Special Weapon . | . . . Impact Weapon 1 | . 1 . Slashing Weapon . | . . . Piercing Weapon . | . . . Special Melee Weapon . | . . . Unidentified Prototypes . | . . . Parts Lost 5 | . . 5 Power 1 | . . 1 Propulsion 4 | . . 4 Utility . | . . . Weapon . | . . . Highest Loss Streak 1 | . . 1 To Critical Strikes . | . . . Average Slot Usage (%) 89 | . 99 87 Engine 11 | . 14 10 Treads 14 | . . 17 Leg 8 | . 28 3 Device 1 | . . 2 Storage 11 | . 14 11 Processor 18 | . 13 19 Energy Gun 7 | . 12 6 Ballistic Gun 9 | . 14 8 Ballistic Cannon 5 | . . 7 Naked Turns . | . . . Heaviest Build 21 | 12 14 21 Greatest Support 60 | 20 20 60 Greatest Overweight (x) 1 | . . 1 Average Overweight (x) . | . . . Largest Inventory Capacity 8 | 8 8 8 Average Capacity 7 | 7 8 8 Most Carried 8 | . 3 8 Average Carried 5 | . 2 7 Final Capacity 8 | 8 8 8 Final Carried 8 | . 3 8 Class Distribution -------------------- 72% | Mutant 27% | Scavenger-Mutant Dominant Class ---------------- Mutant | -10/Materials Mutant | -9/Materials Resources | -11 -10 -9 ----------- Run | Yrd Mat Mat Matter Collected 557 | 225 83 249 Remotely . | . . . Salvage Created 737 | . 173 564 Parts 53 | . 9 44 Haulers Intercepted . | . . . Recyclers Shooed . | . . . Parts Field Recycled . | . . . Retrieved Matter . | . . . Parts Self-Destructed . | . . . Prevented . | . . . Kills | -11 -10 -9 ------- Run | Yrd Mat Mat Combat Hostiles Destroyed 27 | . 6 21 Guns 23 | . 6 17 Cannons 3 | . . 3 Classes Destroyed 3 | . 2 1 Swarmer 14 | . 3 11 Grunt 8 | . 3 5 Sentry 5 | . . 5 Best Kill Streak 4 | . 4 4 Combat Bots Only 4 | . 4 4 Max Kills in Single Turn 2 | . 2 1 Gunslinging 1 | . 1 . Exploded . | . . . Melee . | . . . Uniques/NPCs Destroyed . | . . . Combat | -11 -10 -9 -------- Run | Yrd Mat Mat Hostile Shots Fired 151 | . 30 121 Missed 36 | . 5 31 Damage Taken 1171 | . 263 908 Core 211 | . 60 151 Absorbed by Shields . | . . . Core Remaining (%) 88 | 100 76 . Volleys Fired 65 | . 18 47 Largest 2 | . 2 2 Hottest 100 | . 60 100 Shots Fired 129 | . 36 93 Gun 108 | . 36 72 Cannon 21 | . . 21 Launcher . | . . . Special . | . . . Kinetic 75 | . 18 57 Thermal 54 | . 18 36 Explosive . | . . . Electromagnetic . | . . . Robot Hit Streak 16 | . 8 16 Robot Miss Streak 3 | . 3 2 Penetration Max . | . . . Secondary Targets 3 | . 1 2 Max Gunslinging Chain 1 | . 1 1 Shots Hit Robots 96 | . 26 70 Core Hits 44 | . 13 31 Critical Kills . | . . . Critical Parts Destroyed . | . . . Critical Strikes 3 | . . 3 Burn 3 | . . 3 Melee Attacks 2 | . 2 . Impact 2 | . 2 . Slashing . | . . . Piercing . | . . . Sneak Attacks . | . . . Combat Hostiles . | . . . Follow-up Attacks . | . . . Damage Inflicted 1343 | . 246 1097 Guns 990 | . 245 745 Cannons 352 | . . 352 Explosions . | . . . Melee . | . . . Ramming 1 | . 1 . Kinetic 794 | . 103 691 Thermal 548 | . 142 406 Explosive . | . . . Electromagnetic . | . . . Impact . | . . . Slashing . | . . . Piercing . | . . . Highest Corruption 2 | . 2 . Average Corruption 2 | . 2 . Corruption Purged . | . . . Corruption Blocked . | . . . Effects 2 | . 2 . Message Errors 1 | . 1 . Heat Flow Errors 1 | . 1 . Overload Shots . | . . . Overflow Damage 5 | . . 5 Projectiles 5 | . . 5 Explosions . | . . . Melee . | . . . Knockbacks 3 | . . 3 Impact . | . . . Kinetic 3 | . . 3 Secondary . | . . . Self-Inflicted Damage . | . . . Shots . | . . . Rammed . | . . . Targets Rammed 1 | . 1 . Kicked 1 | . 1 . Crushed . | . . . Highest Temperature 264 | . 156 264 Average Temperature 62 | . 71 58 Received Heat Transfer 342 | . 102 240 Effects 1 | . . 1 Energy Bleed 1 | . . 1 Siege Activations . | . . . Robots Corrupted . | . . . Combat Hostiles . | . . . Parts Fried . | . . . Impact Corruptions . | . . . Robots Melted 1 | . . 1 Combat Hostiles 1 | . . 1 Parts Melted 2 | . . 2 Heat Transferred 1550 | . 325 1225 Parts Sabotaged . | . . . Parts Stolen . | . . . Parts Stripped . | . . . Power Chain Reactions . | . . . Alert | -11 -10 -9 ------- Run | Yrd Mat Mat Peak Influence 511 | . 195 511 Initial 81 | . . 81 Average 266 | . 95 315 Maximum Alert Level 2 | . . 2 Low Security (%) 28 | 100 100 8 Level 1 64 | . . 82 Level 2 6 | . . 8 Level 3 . | . . . Level 4 . | . . . Level 5 . | . . . High Security . | . . . Max Security . | . . . Squads Dispatched 2 | . 1 1 Investigation 1 | . . 1 Extermination . | . . . Reinforcement 1 | . 1 . Assault . | . . . Garrison . | . . . Intercept . | . . . Searches Triggered . | . . . Construction Impeded . | . . . Haulers Reinforced . | . . . Active Scanning Responses . | . . . Cargo Convoy Interrupts . | . . . Stealth | -11 -10 -9 --------- Run | Yrd Mat Mat Distress Signals 4 | . . 4 Communications Jammed . | . . . Distress Signals . | . . . Times Spotted 40 | . 10 30 Peak Tracking Total 5 | . 4 5 Tactical Retreats 3 | . . 3 Traps | -11 -10 -9 ------- Run | Yrd Mat Mat Traps Triggered 1 | . 1 . Indirectly . | . . . Trap Hack Attempts . | . . . Triggered . | . . . Disarmed . | . . . Reprogrammed . | . . . Reused . | . . . Traps Extracted . | . . . Installed . | . . . Triggered . | . . . Machines | -11 -10 -9 ---------- Run | Yrd Mat Mat Machines Disabled . | . . . Max in Single Turn . | . . . Machines Repaired . | . . . Machines Dismantled . | . . . Machines Sabotaged . | . . . Overloaded Fab Kills . | . . . Hacking | -11 -10 -9 --------- Run | Yrd Mat Mat Machines Accessed 7 | . 3 4 Terminals 7 | . 3 4 Fabricators . | . . . Repair Stations . | . . . Recycling Units . | . . . Scanalyzers . | . . . Garrison Access . | . . . Total Hacks 14 | . 5 9 Successful 5 | . 3 2 Failed 9 | . 2 7 Catastrophic 2 | . 1 1 Database Lockouts . | . . . Manual 5 | . . 5 Terminals 14 | . 5 9 Fabricators . | . . . Repair Stations . | . . . Recycling Units . | . . . Scanalyzers . | . . . Garrison Access . | . . . Terminal Hacks 5 | . 3 2 Branch Access Points 1 | . . 1 Alert Level 1 | . . 1 Locate Traps 1 | . 1 . Zone Layout 2 | . 2 . Fabricator Hacks . | . . . Repair Station Hacks . | . . . Recycling Unit Hacks . | . . . Scanalyzer . | . . . Garrison Access Hacks . | . . . Unauthorized Hacks . | . . . Terminals . | . . . Fabricators . | . . . Repair Stations . | . . . Recycling Units . | . . . Scanalyzers . | . . . Garrison Access . | . . . Data Cores Recovered . | . . . Used . | . . . Hacking Detections 5 | . 2 3 Full Trace Events 2 | . . 2 Feedback Events . | . . . Feedback Blocked . | . . . Robot Schematics Acquired . | . . . Robots Built . | . . . Authchips . | . . . Time . | . . . Total Robot Build Rating . | . . . Part Schematics Acquired . | . . . Parts Built . | . . . Authchips . | . . . Time . | . . . Total Part Build Rating . | . . . Parts Repaired . | . . . Time . | . . . Parts Recycled . | . . . Recycled Matter . | . . . Retrieved Matter . | . . . Retrieved Components . | . . . Parts Scanalyzed . | . . . Part Schematics Acquired . | . . . Parts Damaged . | . . . Bothacking | -11 -10 -9 ------------ Run | Yrd Mat Mat Used RIF Installer . | . . . Robots Hacked . | . . . Non-combat . | . . . Combat . | . . . Robot Hacks Applied . | . . . Relay Couplers Released . | . . . Fabnet Peak Effective % . | . . . Robots Rewired . | . . . Allies Hacked . | . . . Hacks Repelled . | . . . Allies | -11 -10 -9 -------- Run | Yrd Mat Mat Total Allies . | . . . Largest Group . | . . . Highest-Rated Group . | . . . Highest-Rated Ally . | . . . Total Orders . | . . . Ally Attacks . | . . . Total Damage . | . . . Kills . | . . . Allies Corrupted . | . . . Allies Melted . | . . . Intel | -11 -10 -9 ------- Run | Yrd Mat Mat Robot Analysis Total . | . . . Derelict Logs Recovered . | . . . Drone Launches . | . . . Drone Recoveries . | . . . Exploration | -11 -10 -9 ------------- Run | Yrd Mat Mat Turns Passed 1510 | 43 278 1189 Spaces Moved 787 | 31 177 579 Core 3 | 3 . . Treads 487 | . . 487 Legs 297 | 28 177 92 Wheels . | . . . Hover . | . . . Flight . | . . . Fastest Speed 50 | 50 120 120 Average Speed 155 | 113 120 168 Slowest Speed 240 | 120 120 240 Overloaded Moves . | . . . Propulsion Burnouts . | . . . Robots Hopped . | . . . Cave-ins Triggered . | . . . Exploration Rate (%) 36 | 3 43 64 Regions Visited 2 Branch Regions . Pre-discovered Areas . | . . . Known Exits Taken . | . . . Unknown Exits Taken 2 | 1 1 . Scrap Searched . | . . . Spaces Dug 1 | . 1 . Terrain Destroyed 2 | . 1 1 Melee 1 | . 1 . Projectile 1 | . . 1 AOE . | . . . Terrain Rammed . | . . . Walls Destroyed . | . . . Machines Disabled . | . . . Actions | -11 -10 -9 --------- Run | Yrd Mat Mat Total 943 | 36 205 702 Wait 52 | . 2 50 Move 785 | 30 176 579 Hop . | . . . Pick Up 12 | . 3 9 Fast Attach 10 | 6 1 3 Attach 2 | . . 2 Detach 1 | . . 1 Swap 8 | . 2 6 Drop 5 | . . 5 Fire 65 | . 18 47 Melee 2 | . 2 . Ram . | . . . Kick 1 | . 1 . Crush . | . . . Escape Stasis . | . . . Rewire . | . . . Trap . | . . . Miscellaneous . | . . . Route ------- -11/Scrapyard -10/Materials (discovered 2 exits: *Mat x2) -9/Materials (discovered 3 exits: [*Mat x2] / *Min) History --------- Turn | Location | Event 21 | -11/Scrapyard | Discovered new exit (range 16) 44 | -11/Scrapyard | Entered Materials 192 | -10/Materials | Discovered new exit (range 12) 275 | -10/Materials | Discovered new exit (range 18) 318 | -10/Materials | Build established: Mutant 322 | -10/Materials | Entered another Materials area 322 | -9/Materials | Evolved 2 slots: Propulsion x1, Utility x1 764 | -9/Materials | Discovered new exit (range 4) 916 | -9/Materials | Build established: Scavenger-Mutant 939 | -9/Materials | Identified exit to Mines 1278 | -9/Materials | Discovered new exit (range 15) 1331 | -9/Materials | Build established: Mutant 1511 | -9/Materials | Self-destructed Last Messages --------------- 01073_ R-06 Scavenger collects Heat Sink. 01074_ Acquired 30 matter. 01078_ K-01 Serf collects debris. 01108_ Y-45 Defender destroyed. 01110_ K-01 Serf cleans the Machine. 01118_ K-01 Serf collects debris. 01118_ K-01 Serf cleans the Machine. 01122_ K-01 Serf collects debris. 01146_ Connecting with Terminal... 01252_ Discarded Terrain Scan Processor. 01253_ Acquired Terrain Scanner. 01278_ Connecting with Terminal... >>Alert(Check) Current Alert Level: 1-X 01278_ EXIT=FOUND 01352_ K-01 Serf cleans the Terminal. 01355_ Connecting with Terminal... 01355_ K-01 Serf cleans the Terminal. 01429_ K-01 Serf cleans the Material Processor. 01509_ Lgt. Treads destroyed. Map ----- +----------------------------------------------------+ | # ###??????????????????????????????????????#### | | # #??????????????????????????????????????+ | | + #??????????????????????????????????????##### | | # #??????????????????????????????????????# | | # #??????????????????????????????????????# | | [# #??????????????????????????????????????# | | # #??????????????? ????????????????????# | | ### #?????????????? ???????????????????# "" | | ??# #??????????????? ???????????????????# """ | | ??# #???????????????# ???????????????????# """ | | ??# #???????????????# ??????? ???????????# """ | | ??# #???????????????# ###????????????????# "" | | ??# #???????????????# ##+################### | | ??# #???????????????# | | ??# #???????????????+ | | ??#####???????????????# T """ """ | | ??????????????????????# """"" """"" | | ??????????????????????# """"" """"" | | ?????????????#????#?#?# """"" """"" | | ?????????????########## g """ """ | | ?????????????# g ] | | ?????????????# | | ????????????## a | | ?????????????# | | ?????????????# ### | | ?????????#???# #######@####### #?? | | ?????????????#### #???# ! #######+############# | | ????????????#???# ##### # + | | ????????????#??## + """ # ####### | | ????????????????####### """ # #?????# | | ????????????#?????????# """ # | = ##????? | | ??????????????????????# # #?????# | | ??????????????????????######## #?????? | | ?????????????????#?????????#?###############?????? | | | | | | | | | | | | | | | | | | | | | | | | | | | | | | | | | +----------------------------------------------------+ Best States ------------- Heat Dissipation 28 Energy Generation 12 Energy Capacity 265 Matter Stores 300 Matter Capacity 300 Sight Range 18 Terrain Scan Range 14 Terrain Scan Density 85 Evasion (%) 55 Recoil Reduction 3 Item Schematics ----------------- None Robot Schematics ------------------ None Fabricated ------------ Nothing Alien Tech Used ----------------- None Achievements -------------- None Challenges ------------ None Game ------ Seed Cogmind Manual? 1 Play Time 00:18:35 Cumulative 9.8 hours Start 2024.05.01 @ 21:28:25 End 2024.05.01 @ 21:43:49 Sessions 1 Manual Loads 0 Difficulty Rogue Special Mode None Game No. 21 Rogue 17 Adventurer 4 Explorer 0 Win Type - Total 0 Types 0/0/0/0/0/0/0/0/0 Lore% 16 Gallery% 15 Achievement% 14 Wizard Run 0 Options --------- Layout 2 ASCII 0 Keyboard 1 Movement Numpad Keybinds 0 Fullscreen 2 Font 24/Smallcaps Map View 50x44 Zoom Use 0% Tactical HUD 1 Map Filters NONE Filters NONE Steam 1 RUN: 4bc653b3-1ea2-4d33-82f4-c4a5cb3ddf68